bitfinex-derivatives/quotes_BTCF0:USTF0_20240923
["timestamp","ask_amount","ask_price","bid_price","bid_amount"]
[1727078980436,0.440518,63521.0,63520.0,0.132]
[1727078980638,0.440518,63521.0,63520.0,0.002]
[1727078982823,0.51926412,63521.0,63520.0,0.002]
[1727078983426,1.07026212,63521.0,63520.0,0.002]
[1727078983623,1.01704359,63521.0,63520.0,0.002]
[1727078984044,0.93832559,63521.0,63520.0,0.002]
[1727078984234,0.46604559,63521.0,63520.0,0.002]
[1727078985033,0.46604519,63521.0,63520.0,0.002]
[1727078985234,0.46604519,63521.0,63520.0,0.080719]
[1727078985235,0.3618,63521.0,63520.0,0.080719]
[1727078986643,0.001,63521.0,63520.0,0.080719]
[1727078987334,0.001,63521.0,63520.0,0.14356204]
[1727078987542,0.001,63521.0,63520.0,0.080719]
[1727078987745,0.001,63521.0,63520.0,0.14356204]
[1727078990347,0.001,63521.0,63520.0,0.080719]
[1727078991242,0.08107416,63526.0,63523.0,0.078714]
[1727078991450,0.08107416,63526.0,63525.0,0.13]
[1727078992042,0.00236216,63526.0,63525.0,0.13]
[1727078992340,0.00236216,63526.0,63525.0,0.208713]
[1727078992933,0.00236216,63526.0,63525.0,0.209713]
[1727078994438,0.00236216,63526.0,63525.0,0.210713]
[1727078998752,0.3616,63527.0,63526.0,0.078711]
[1727078998948,0.3608,63527.0,63526.0,0.078711]
[1727078999340,0.3608,63527.0,63526.0,0.12577723]
[1727078999551,0.3608,63527.0,63526.0,0.078711]
[1727078999960,0.3608,63527.0,63526.0,0.079711]
[1727079000255,0.3608,63527.0,63526.0,0.080711]
[1727079003144,0.3608,63527.0,63526.0,0.12777086]
[1727079003853,0.43951,63527.0,63526.0,0.002]
[1727079006956,0.07871,63527.0,63526.0,0.002]
[1727079008446,0.15742,63527.0,63526.0,0.002]
[1727079009048,0.18294571,63527.0,63526.0,0.002]
[1727079009252,0.15742,63527.0,63526.0,0.002]
[1727079010977,0.18294587,63527.0,63526.0,0.002]
[1727079011864,0.54374587,63527.0,63526.0,0.002]
[1727079012551,0.46503587,63527.0,63526.0,0.002]
[1727079013055,0.5181249,63527.0,63526.0,0.002]
[1727079013264,0.43951,63527.0,63526.0,0.002]
[1727079013553,0.5181249,63527.0,63526.0,0.002]
[1727079013763,0.43951,63527.0,63526.0,0.002]
[1727079014359,0.5181249,63527.0,63526.0,0.002]
[1727079015058,0.43951,63527.0,63526.0,0.002]
[1727079015265,0.5181249,63527.0,63526.0,0.002]
[1727079018365,0.51815611,63527.0,63526.0,0.002]
[1727079018861,0.46503519,63527.0,63526.0,0.002]
[1727079019446,0.43951,63527.0,63526.0,0.002]
[1727079019852,0.46503498,63527.0,63526.0,0.002]
[1727079021464,0.43951,63527.0,63526.0,0.002]
[1727079022971,0.51815302,63527.0,63526.0,0.002]
[1727079023553,0.46503484,63527.0,63526.0,0.002]
[1727079026671,0.46503517,63527.0,63526.0,0.002]
[1727079027260,0.46503461,63527.0,63526.0,0.002]
[1727079027461,0.46503462,63527.0,63526.0,0.002]
[1727079028555,0.46503546,63527.0,63526.0,0.002]
[1727079028962,0.54374546,63527.0,63526.0,0.002]
[1727079029376,0.55956736,63527.0,63526.0,0.002]
[1727079032466,1.84051736,63527.0,63526.0,0.002]
[1727079032673,1.84051736,63527.0,63519.0,0.04705986]
[1727079032674,1.68309736,63527.0,63519.0,0.047201]
[1727079032864,0.078719,63520.0,63519.0,0.047201]
[1727079033060,0.07872,63519.0,63518.0,0.047201]
[1727079033270,0.15740179,63520.0,63518.0,0.04721843]
[1727079033462,0.07872,63519.0,63518.0,0.04721843]
[1727079033662,0.078721,63518.0,63517.0,0.04721843]
[1727079033958,0.078721,63518.0,63517.0,0.04721787]
[1727079034258,0.078721,63518.0,63513.0,0.06284304]
[1727079034259,0.078723,63517.0,63516.0,0.04721787]
[1727079035077,0.078723,63517.0,63512.0,0.0471]
[1727079035078,0.078725,63515.0,63514.0,0.04721787]
[1727079035271,0.3608,63515.0,63513.0,0.04721787]
[1727079036271,0.078726,63514.0,63513.0,0.04721787]
[1727079037165,0.439526,63514.0,63513.0,0.04721787]
[1727079038966,0.440526,63514.0,63513.0,0.04721787]
[1727079039166,0.078727,63513.0,63512.0,0.09431787]
[1727079039681,0.078727,63513.0,63512.0,0.0471]
[1727079040464,0.001,63513.0,63511.0,0.04718808]
[1727079040667,0.001,63513.0,63502.0,0.13]
[1727079040668,0.078735,63507.0,63505.0,0.04718808]
[1727079040867,0.078739,63504.0,63503.0,0.04718808]
[1727079041167,0.078744,63500.0,63499.0,0.04718808]
[1727079041982,0.439544,63500.0,63499.0,0.04718808]
[1727079042166,0.078745,63499.0,63498.0,0.04718808]
[1727079043474,0.078745,63499.0,63498.0,0.06818808]
[1727079043684,0.078745,63499.0,63498.0,0.021]
[1727079044068,0.078749,63496.0,63495.0,0.06284304]
[1727079044262,0.208749,63496.0,63495.0,0.06284304]
[1727079044465,0.078754,63492.0,63491.0,0.0785538]
[1727079044666,0.078757,63489.0,63488.0,0.0785538]
[1727079045675,0.065757,63489.0,63488.0,0.0785538]
[1727079046478,0.066757,63489.0,63488.0,0.0875538]
[1727079046777,0.067757,63489.0,63488.0,0.0965538]
[1727079049779,0.067757,63489.0,63488.0,0.018]
[1727079050180,0.789357,63489.0,63488.0,0.018]
[1727079053585,0.428557,63489.0,63488.0,0.018]
[1727079055687,0.428557,63489.0,63472.0,0.3268]
[1727079055688,0.078759,63488.0,63472.0,0.3268]
[1727079055982,0.078778,63472.0,63471.0,0.0473]
[1727079056482,0.078778,63472.0,63468.0,0.0498]
[1727079056483,0.078782,63469.0,63468.0,0.0498]
[1727079056672,0.439582,63469.0,63468.0,0.0498]
[1727079057069,0.425582,63469.0,63468.0,0.0498]
[1727079057480,0.3608,63469.0,63468.0,0.0498]
[1727079057681,0.3618,63469.0,63468.0,0.0638]
[1727079058084,0.001,63469.0,63468.0,0.0638]
[1727079059586,0.001,63469.0,63468.0,0.0498]
[1727079059780,0.002,63469.0,63468.0,0.0498]
[1727079060381,0.002,63469.0,63468.0,0.128583]
[1727079060776,0.002,63469.0,63468.0,0.258583]
[1727079061176,0.002,63469.0,63468.0,0.1798]
[1727079062681,0.078783,63468.0,63465.0,0.045]
[1727079063688,0.078785,63467.0,63465.0,0.045]
[1727079064688,0.078786,63466.0,63465.0,0.045]
[1727079064981,0.3608,63466.0,63451.0,0.078804]
[1727079065185,0.3608,63458.0,63453.0,0.0491]
[1727079065383,0.0788,63455.0,63453.0,0.0491]
[1727079066281,0.078801,63454.0,63453.0,0.0491]
[1727079067482,0.079801,63454.0,63453.0,0.0491]
[1727079067688,0.079801,63454.0,63453.0,0.1791]
[1727079068585,0.002,63454.0,63453.0,0.1791]
[1727079069286,0.002,63454.0,63453.0,0.257902]
[1727079071084,0.002,63454.0,63453.0,0.30486219]
[1727079071882,0.3608,63461.0,63453.0,0.1791]
[1727079072087,0.3608,63461.0,63460.0,0.208793]
[1727079072395,0.3608,63461.0,63460.0,0.25586359]
[1727079073191,0.3628,63461.0,63460.0,0.25586359]
[1727079073580,0.3628,63461.0,63460.0,0.208793]
[1727079073795,0.441592,63461.0,63460.0,0.13]
[1727079074293,0.078795,63459.0,63456.0,0.13]
[1727079075999,0.079795,63459.0,63456.0,0.13]
[1727079076389,0.080795,63459.0,63456.0,0.13]
[1727079076910,0.080795,63459.0,63456.0,0.208798]
[1727079080000,0.080795,63459.0,63456.0,0.078798]
[1727079080499,0.080795,63459.0,63455.0,0.13]
[1727079080500,0.078796,63458.0,63455.0,0.13]
[1727079081183,0.078796,63458.0,63455.0,0.17707059]
[1727079081587,0.002,63459.0,63455.0,0.17707059]
[1727079081785,0.001,63459.0,63455.0,0.17707059]
[1727079081995,0.001,63458.0,63457.0,0.078797]
[1727079082199,0.001,63458.0,63457.0,0.12586759]
[1727079082410,0.001,63458.0,63457.0,0.078797]
[1727079083088,0.3608,63461.0,63458.0,0.078796]
[1727079083089,0.001,63459.0,63458.0,0.078796]
[1727079085195,0.440388,63464.0,63463.0,0.07879]
[1727079085395,0.440388,63464.0,63463.0,0.20879]
[1727079085396,0.439588,63464.0,63463.0,0.20879]
[1727079086392,0.078783,63468.0,63467.0,0.078785]
[1727079086593,0.078783,63468.0,63467.0,0.2559954]
[1727079086800,0.078783,63468.0,63467.0,0.208785]
[1727079087498,0.3608,63472.0,63469.0,0.078782]
[1727079087693,0.3608,63472.0,63469.0,0.12598668]
[1727079088204,0.078781,63470.0,63469.0,0.12598668]
[1727079088394,0.078781,63470.0,63469.0,0.078782]
[1727079089800,0.082781,63470.0,63469.0,0.078782]
[1727079090798,0.004,63470.0,63469.0,0.078782]
[1727079091596,0.3608,63472.0,63471.0,0.07878]
[1727079091794,0.3608,63480.0,63479.0,0.07877]
[1727079092005,0.00236362,63482.0,63479.0,0.13]
[1727079092222,0.00236362,63482.0,63481.0,0.12595692]
[1727079092399,0.00236362,63482.0,63481.0,0.078767]
[1727079093308,0.00236362,63482.0,63481.0,0.439567]
[1727079093710,0.01636362,63482.0,63481.0,0.439567]
[1727079093907,0.01636362,63482.0,63481.0,0.48669491]
[1727079094211,0.01836362,63482.0,63481.0,0.439567]
[1727079094816,0.01836362,63482.0,63481.0,0.48667079]
[1727079095208,0.00636362,63482.0,63481.0,0.439567]
[1727079095521,0.3608,63491.0,63490.0,0.078756]
[1727079095711,0.3608,63491.0,63490.0,0.208756]
[1727079096811,0.3718,63491.0,63490.0,0.208756]
[1727079097011,0.023,63491.0,63490.0,0.208756]
[1727079098011,0.023,63491.0,63490.0,1.281276]
[1727079098211,0.75576,63504.0,63503.0,0.07874]
[1727079098404,0.75576,63504.0,63503.0,0.20874]
[1727079098405,0.3608,63504.0,63503.0,0.20874]
[1727079099719,0.3616,63517.0,63503.0,1.5632]
[1727079099905,0.3608,63517.0,63516.0,0.208724]
[1727079100106,0.078709,63528.0,63516.0,0.60232]
[1727079100313,0.078709,63528.0,63527.0,0.13]
[1727079101009,0.3608,63530.0,63527.0,0.13]
[1727079102303,0.0488,63533.0,63527.0,0.13]
[1727079102502,0.014,63530.0,63527.0,0.131]
[1727079102914,0.014,63528.0,63527.0,0.002]
[1727079103616,0.014,63530.0,63527.0,0.001]
[1727079103823,0.014,63530.0,63527.0,0.002]
[1727079104411,0.1928,63533.0,63527.0,0.001]
[1727079104613,0.3608,63532.0,63527.0,0.002]
[1727079104814,0.3608,63532.0,63527.0,0.001]
[1727079105113,0.014,63528.0,63527.0,0.002]
[1727079106218,0.014,63528.0,63527.0,0.001]
[1727079106512,0.014,63528.0,63527.0,0.002]
[1727079106513,0.02,63528.0,63527.0,0.002]
[1727079106709,0.006,63528.0,63519.0,0.3608]
[1727079106910,0.13,63526.0,63519.0,0.3608]
[1727079107117,0.078714,63524.0,63519.0,0.4908]
[1727079107510,0.02,63528.0,63527.0,0.001]
[1727079107922,0.014,63528.0,63527.0,0.001]
[1727079108118,0.014,63528.0,63523.0,0.208715]
[1727079108119,0.009,63528.0,63523.0,0.208715]
[1727079108420,0.009,63526.0,63523.0,0.208715]
[1727079109515,0.009,63526.0,63524.0,0.078714]
[1727079110018,0.028,63528.0,63527.0,0.001]
[1727079110516,0.014,63526.0,63524.0,0.078714]
[1727079110911,0.014,63528.0,63524.0,0.078714]
[1727079111113,0.014,63526.0,63524.0,0.079714]
[1727079111524,0.027,63526.0,63524.0,0.079714]
[1727079112023,0.027,63526.0,63524.0,0.001]
[1727079112324,0.028,63526.0,63524.0,0.002]
[1727079113115,0.014,63526.0,63524.0,0.002]
[1727079113822,0.028,63526.0,63524.0,0.002]
[1727079115025,0.028,63526.0,63524.0,0.080714]
[1727079115224,0.028,63526.0,63525.0,0.078713]
[1727079115412,0.028,63526.0,63525.0,0.439513]
[1727079116211,0.028,63526.0,63525.0,0.488513]
[1727079116416,0.028,63526.0,63525.0,0.489513]
[1727079117519,0.014,63526.0,63525.0,0.440513]
[1727079117818,0.106711,63526.0,63525.0,0.002]
[1727079118628,0.236711,63526.0,63525.0,0.002]
[1727079120624,1.23024,63526.0,63504.0,0.3268]
[1727079120821,0.07873,63511.0,63510.0,0.0023617]
[1727079121523,1.15109,63511.0,63510.0,0.0023617]
[1727079121838,1.07236,63511.0,63494.0,0.439551]
[1727079122019,0.13,63502.0,63494.0,0.439551]
[1727079122237,0.078742,63501.0,63494.0,0.3608]
[1727079123641,0.079742,63501.0,63494.0,0.3708]
[1727079124843,0.078744,63500.0,63494.0,0.3708]
[1727079125051,0.078745,63499.0,63494.0,0.3808]
[1727079125739,0.13,63497.0,63494.0,0.02]
[1727079125937,0.07875,63495.0,63494.0,0.01]
[1727079126136,0.20875,63495.0,63494.0,0.02]
[1727079126334,0.80875,63495.0,63494.0,0.02]
[1727079126843,1.28123,63495.0,63494.0,0.01]
[1727079127142,1.20348,63495.0,63481.0,0.00236245]
[1727079127339,0.4908,63486.0,63481.0,0.00236245]
[1727079127852,0.3608,63486.0,63481.0,0.00236245]
[1727079128546,0.3608,63486.0,63484.0,0.13]
[1727079129034,0.3608,63486.0,63484.0,0.1751]
[1727079129439,0.3678,63486.0,63484.0,0.1751]
[1727079130042,0.3748,63486.0,63484.0,0.1751]
[1727079130244,0.3738,63486.0,63484.0,0.1751]
[1727079130441,0.3738,63486.0,63481.0,0.00236245]
[1727079130632,0.3728,63486.0,63481.0,0.00236245]
[1727079131339,0.3748,63486.0,63481.0,0.00236245]
[1727079131750,0.3758,63486.0,63481.0,0.00236245]
[1727079132541,0.3728,63486.0,63481.0,0.00236245]
[1727079132949,0.3708,63486.0,63481.0,0.00236245]
[1727079133351,0.3728,63486.0,63481.0,0.00236245]
[1727079133547,0.3748,63486.0,63481.0,0.00236245]
[1727079135155,0.453561,63486.0,63481.0,0.00236245]
[1727079135847,0.454561,63486.0,63481.0,0.00236245]
[1727079136354,0.448561,63486.0,63481.0,0.36316245]
[1727079136649,0.3768,63486.0,63483.0,0.078764]
[1727079136839,0.3768,63486.0,63485.0,0.13]
[1727079137041,0.3768,63486.0,63485.0,0.208762]
[1727079139062,0.3728,63486.0,63485.0,0.078762]
[1727079139357,0.3818,63486.0,63485.0,0.078762]
[1727079139546,0.3758,63486.0,63485.0,0.078762]
[1727079139853,0.3668,63486.0,63485.0,0.078762]
[1727079140154,0.3738,63486.0,63485.0,0.078762]
[1727079140758,0.3738,63486.0,63485.0,0.208762]
[1727079149867,0.013,63486.0,63485.0,0.208762]
[1727079150247,0.013,63486.0,63485.0,0.25592574]
[1727079151371,0.013,63486.0,63485.0,0.208762]
[1727079151555,0.3608,63490.0,63485.0,0.208762]
[1727079151556,0.3608,63490.0,63489.0,0.078757]
[1727079151757,0.078748,63497.0,63489.0,0.13]
[1727079151963,0.078748,63497.0,63495.0,0.13]
[1727079152764,0.078748,63497.0,63495.0,0.208749]
[1727079153059,0.3608,63498.0,63496.0,0.078749]
[1727079153461,0.011,63497.0,63496.0,0.078749]
[1727079154065,0.014,63497.0,63496.0,0.078749]
[1727079154763,0.028,63497.0,63495.0,0.001]
[1727079155764,0.026,63497.0,63496.0,0.001]
[1727079156264,0.012,63497.0,63496.0,0.001]
[1727079156465,0.024,63497.0,63496.0,0.001]
[1727079157157,0.025,63497.0,63496.0,0.001]
[1727079157858,0.025,63497.0,63495.0,0.07875]
[1727079157859,0.025,63497.0,63495.0,0.07975]
[1727079158264,0.025,63497.0,63495.0,0.25693685]
[1727079158774,0.026,63497.0,63496.0,0.001]
[1727079158959,0.026,63497.0,63496.0,0.079749]
[1727079159458,0.026,63497.0,63496.0,0.12594438]
[1727079159459,0.013,63497.0,63496.0,0.12594438]
[1727079159768,0.026,63497.0,63496.0,0.12594417]
[1727079159955,0.026,63497.0,63496.0,0.12594479]
[1727079160764,0.026,63497.0,63496.0,0.078749]
[1727079161365,0.104748,63497.0,63495.0,0.001]
[1727079161561,0.078749,63496.0,63495.0,0.001]
[1727079161862,0.078749,63496.0,63492.0,0.12594879]
[1727079162271,0.078749,63496.0,63493.0,0.078752]
[1727079162569,0.078749,63496.0,63495.0,0.001]
[1727079163469,0.089749,63496.0,63495.0,0.001]
[1727079163670,0.138749,63496.0,63495.0,0.001]
[1727079164158,0.138749,63496.0,63491.0,0.04719579]
[1727079164159,0.062,63496.0,63491.0,0.04719579]
[1727079164361,0.072,63496.0,63493.0,0.001]
[1727079164566,0.078751,63494.0,63493.0,0.001]
[1727079165171,0.078754,63492.0,63491.0,0.04719579]
[1727079165777,0.074,63496.0,63490.0,0.04719579]
[1727079165778,0.078755,63491.0,63490.0,0.04719579]
[1727079167258,0.078755,63491.0,63490.0,0.17719579]
[1727079167259,0.011,63491.0,63490.0,0.17719579]
[1727079167454,0.011,63491.0,63490.0,0.208756]
[1727079167855,0.011,63491.0,63490.0,0.27168631]
[1727079168368,0.021,63491.0,63490.0,0.27268631]
[1727079169667,0.021,63491.0,63490.0,0.209756]
[1727079170465,0.021,63491.0,63490.0,0.131]
[1727079170670,0.460555,63491.0,63490.0,0.001]
[1727079171270,0.53915982,63491.0,63490.0,0.001]
[1727079175883,0.17835982,63491.0,63490.0,0.001]
[1727079176064,0.460555,63491.0,63490.0,0.001]
[1727079185971,0.078761,63486.0,63481.0,0.04721155]
[1727079186172,0.078767,63481.0,63480.0,0.04721155]
[1727079186478,0.078773,63476.0,63475.0,0.04719458]
[1727079186679,0.078775,63475.0,63474.0,0.04719458]
[1727079186977,0.078775,63475.0,63473.0,0.3608]
[1727079186978,0.078775,63475.0,63473.0,0.40799458]
[1727079187170,0.078776,63474.0,63473.0,0.40799458]
[1727079187479,0.078776,63474.0,63473.0,0.3608]
[1727079187480,0.208776,63474.0,63473.0,0.3608]
[1727079188372,0.078776,63474.0,63473.0,0.3608]
[1727079189169,0.072776,63474.0,63473.0,0.3608]
[1727079189364,0.078778,63473.0,63468.0,0.04955798]
[1727079189576,0.078778,63473.0,63468.0,0.0023634]
[1727079189880,0.073778,63473.0,63468.0,0.04955798]
[1727079190778,0.075778,63473.0,63468.0,0.05455798]
[1727079191281,0.075778,63473.0,63468.0,0.0073634]
[1727079193978,0.002,63473.0,63471.0,0.13]
[1727079194180,0.002,63473.0,63472.0,0.078778]
[1727079195269,0.002,63473.0,63471.0,0.13]
[1727079195470,0.002,63473.0,63468.0,0.0861464]
[1727079195471,0.002,63473.0,63469.0,0.04719458]
[1727079195680,0.002,63473.0,63468.0,0.0861464]
[1727079195681,0.080777,63473.0,63468.0,0.13334098]
[1727079195878,0.079777,63473.0,63470.0,0.13]
[1727079196176,0.002,63473.0,63470.0,0.13]
[1727079196577,0.002,63473.0,63468.0,0.0811464]
[1727079196772,0.002,63473.0,63471.0,0.13]
[1727079197482,0.001,63473.0,63471.0,0.13]
[1727079197790,0.002,63473.0,63471.0,0.13]
[1727079198082,0.078781,63471.0,63468.0,0.0023634]
[1727079198279,0.078781,63470.0,63468.0,0.0023634]
[1727079198576,0.078782,63469.0,63468.0,0.0023634]
[1727079198976,0.439582,63469.0,63468.0,0.0023634]
[1727079200175,0.440582,63469.0,63468.0,0.0023634]
[1727079200374,0.441582,63469.0,63468.0,0.0023634]
[1727079204272,0.650364,63469.0,63468.0,0.0023634]
[1727079204475,0.650364,63469.0,63454.0,0.04719458]
[1727079204476,0.078784,63468.0,63454.0,0.04719458]
[1727079204681,0.078795,63459.0,63453.0,0.30459658]
[1727079204882,0.078795,63459.0,63453.0,0.257402]
[1727079205076,0.078795,63459.0,63453.0,0.30459658]
[1727079205478,0.078795,63459.0,63449.0,0.4102]
[1727079205479,0.3608,63455.0,63451.0,0.04719458]
[1727079205688,0.078806,63450.0,63449.0,0.00124]
[1727079206285,0.4097,63455.0,63444.0,0.13]
[1727079206587,0.3608,63448.0,63444.0,0.13]
[1727079206783,0.3608,63448.0,63447.0,0.13]
[1727079208482,0.3608,63449.0,63443.0,0.078813]
[1727079208687,0.3608,63449.0,63444.0,0.13]
[1727079209185,0.3608,63449.0,63440.0,0.37399458]
[1727079209390,0.3608,63449.0,63440.0,0.4568]
[1727079209582,0.3608,63449.0,63444.0,0.4908]
[1727079209887,0.3618,63449.0,63448.0,0.13]
[1727079210687,0.3628,63449.0,63448.0,0.13]
[1727079213290,0.3628,63449.0,63443.0,0.4908]
[1727079214781,0.3628,63449.0,63448.0,0.13]
[1727079215190,0.3618,63449.0,63448.0,0.13]
[1727079215392,0.3628,63449.0,63448.0,0.13]
[1727079215694,0.3628,63449.0,63443.0,0.4908]
[1727079216187,0.3628,63449.0,63448.0,0.13]
[1727079216401,0.3618,63449.0,63448.0,0.13]
[1727079216585,0.3628,63449.0,63448.0,0.13]
[1727079216784,0.3618,63449.0,63448.0,0.208808]
[1727079217196,0.002,63449.0,63448.0,0.681648]
[1727079217685,0.3608,63461.0,63459.0,0.078794]
[1727079217882,0.3608,63461.0,63457.0,0.13]
[1727079218094,0.3608,63461.0,63458.0,0.0463]
[1727079218998,0.078794,63459.0,63458.0,0.0463]
[1727079219301,0.078794,63459.0,63457.0,0.13]
[1727079219684,0.078794,63459.0,63453.0,0.4908]
[1727079220186,0.078794,63459.0,63457.0,0.078797]
[1727079220383,0.3638,63461.0,63457.0,0.078797]
[1727079220588,0.3628,63461.0,63457.0,0.078797]
[1727079220797,0.001,63459.0,63457.0,0.078797]
[1727079221297,0.003,63459.0,63457.0,0.078797]
[1727079221687,0.002,63459.0,63457.0,0.078797]
[1727079221993,0.3618,63461.0,63457.0,0.078797]
[1727079222199,0.001,63459.0,63457.0,0.078797]
[1727079223086,0.3628,63461.0,63457.0,0.078797]
[1727079223288,0.3628,63461.0,63458.0,0.078795]
[1727079223799,0.3618,63461.0,63458.0,0.078795]
[1727079224096,0.001,63459.0,63458.0,0.078795]
[1727079224498,0.3638,63461.0,63458.0,0.078795]
[1727079224802,0.001,63459.0,63458.0,0.078795]
[1727079225595,0.002,63461.0,63460.0,0.078793]
[1727079225596,0.004,63461.0,63460.0,0.078793]
[1727079226297,0.002,63461.0,63460.0,0.078793]
[1727079227002,0.44039,63463.0,63460.0,0.078793]
[1727079227197,0.43959,63463.0,63460.0,0.078793]
[1727079227501,0.003,63461.0,63460.0,0.078793]
[1727079227698,0.003,63461.0,63456.0,0.12587116]
[1727079227901,0.005,63461.0,63456.0,0.12587116]
[1727079228197,0.078794,63460.0,63454.0,0.12587316]
[1727079228414,0.0487,63461.0,63454.0,0.0788]
[1727079228600,0.0467,63461.0,63454.0,0.0788]
[1727079228903,0.0497,63461.0,63454.0,0.0788]
[1727079229299,0.078796,63459.0,63454.0,0.0788]
[1727079229907,0.078796,63459.0,63454.0,0.12587316]
[1727079230098,0.078796,63459.0,63451.0,0.10923031]
[1727079230099,0.078796,63459.0,63455.0,0.078799]
[1727079230302,0.3608,63457.0,63452.0,0.04707316]
[1727079230497,0.078802,63453.0,63451.0,0.04707316]
[1727079230697,0.078802,63453.0,63449.0,0.04707316]
[1727079230998,0.7216,63457.0,63447.0,0.04718519]
[1727079230999,0.3608,63450.0,63447.0,0.04718519]
[1727079231203,0.3608,63450.0,63446.0,0.04718519]
[1727079231401,0.078808,63448.0,63445.0,0.04718519]
[1727079231995,0.3608,63450.0,63445.0,0.12599619]
[1727079232398,0.3618,63450.0,63445.0,0.12599619]
[1727079232814,0.001,63448.0,63445.0,0.12599619]
[1727079233310,0.3608,63447.0,63445.0,0.12599619]
[1727079234308,0.3608,63447.0,63445.0,0.04718519]
[1727079235309,0.3628,63447.0,63445.0,0.04718519]
[1727079236614,0.3628,63447.0,63444.0,0.078813]
[1727079236615,0.078812,63445.0,63443.0,0.04719782]
[1727079236910,0.078817,63441.0,63438.0,0.06293031]
[1727079237104,0.078817,63441.0,63433.0,0.1708538]
[1727079237105,0.13,63440.0,63437.0,0.06293031]
[1727079237413,0.13,63440.0,63435.0,0.06293031]
[1727079237997,0.3608,63441.0,63435.0,0.06293031]
[1727079238203,0.078819,63439.0,63435.0,0.06293031]
[1727079238419,0.078819,63439.0,63434.0,0.06293031]
[1727079239002,0.002,63440.0,63435.0,0.06293031]
[1727079239203,0.001,63440.0,63438.0,0.13]
[1727079239409,0.001,63440.0,63439.0,0.078819]
[1727079239806,0.001,63441.0,63440.0,0.078818]
[1727079240001,0.001,63441.0,63440.0,0.27174831]
[1727079240200,0.001,63441.0,63440.0,0.14174831]
[1727079240409,0.001,63441.0,63440.0,0.208818]
[1727079240609,0.001,63441.0,63440.0,0.27174831]
[1727079240805,0.3608,63447.0,63440.0,0.19293031]
[1727079241018,0.3608,63447.0,63445.0,0.13]
[1727079241611,0.3608,63447.0,63445.0,0.208811]
[1727079241815,0.3608,63447.0,63446.0,0.078811]
[1727079243708,0.3618,63447.0,63446.0,0.078811]
[1727079245106,0.3628,63447.0,63446.0,0.078811]
[1727079245319,0.3628,63447.0,63446.0,0.124111]
[1727079245821,0.3628,63447.0,63446.0,0.078811]
[1727079246914,0.3618,63447.0,63446.0,0.078811]
[1727079247720,0.3628,63447.0,63446.0,0.078811]
[1727079248825,0.002,63447.0,63446.0,0.078811]
[1727079257429,0.002,63447.0,63446.0,0.12597594]
[1727079259550,0.002,63447.0,63446.0,0.078811]
[1727079261744,0.002,63447.0,63444.0,0.04726133]
[1727079261745,0.078812,63445.0,63444.0,0.04726133]
[1727079262051,0.078815,63443.0,63441.0,0.06301448]
[1727079262345,0.3608,63442.0,63440.0,0.06301448]
[1727079262739,0.3608,63442.0,63441.0,0.078817]
[1727079262939,0.3608,63442.0,63441.0,0.14183148]
[1727079263137,0.3608,63442.0,63441.0,0.078817]
[1727079267950,0.3608,63442.0,63441.0,0.04726077]
[1727079268138,0.3608,63442.0,63439.0,0.06301448]
[1727079268139,0.4088,63442.0,63439.0,0.06301448]
[1727079268647,0.4088,63442.0,63441.0,0.0472656]
[1727079269240,0.4098,63442.0,63441.0,0.0472656]
[1727079269449,0.4098,63442.0,63439.0,0.06301448]
[1727079269450,0.4108,63442.0,63439.0,0.06301448]
[1727079270153,0.4098,63442.0,63439.0,0.06301448]
[1727079270353,0.4098,63442.0,63441.0,0.04726478]
[1727079270952,0.4088,63442.0,63441.0,0.04726478]
[1727079272144,0.4098,63442.0,63441.0,0.04726478]
[1727079272840,0.4088,63442.0,63441.0,0.04726478]
[1727079274955,0.487616,63442.0,63440.0,0.04726478]
[1727079275949,0.487616,63442.0,63441.0,0.00879]
[1727079276249,0.489616,63442.0,63441.0,0.00879]
[1727079277259,0.488616,63442.0,63441.0,0.00879]
[1727079278153,0.127816,63442.0,63441.0,0.00879]
[1727079278346,0.488616,63442.0,63441.0,0.00879]
[1727079278761,0.487616,63442.0,63441.0,0.00879]
[1727079280957,0.4088,63442.0,63441.0,0.00879]
[1727079281346,0.4088,63442.0,63441.0,0.05605478]
[1727079282559,0.4088,63442.0,63441.0,0.00879]
[1727079283457,0.4088,63442.0,63441.0,0.087607]
[1727079284360,0.3608,63442.0,63441.0,0.087607]
[1727079284551,0.43942094,63448.0,63441.0,0.13879]
[1727079284755,0.43942094,63448.0,63445.0,0.04726339]
[1727079284973,0.3608,63448.0,63445.0,0.04726339]
[1727079285151,0.43942094,63448.0,63447.0,0.078809]
[1727079285359,0.3608,63448.0,63447.0,0.078809]
[1727079285662,0.3608,63448.0,63447.0,0.14182348]
[1727079286456,0.3608,63448.0,63447.0,0.078809]
[1727079286655,0.3658,63448.0,63447.0,0.078809]
[1727079286862,0.3658,63448.0,63447.0,0.14182348]
[1727079287358,0.3658,63448.0,63447.0,0.078809]
[1727079288562,0.3658,63448.0,63447.0,0.14182348]
[1727079288859,0.3658,63448.0,63447.0,0.078809]
[1727079288860,0.005,63448.0,63447.0,0.078809]
[1727079289163,0.0037,63461.0,63447.0,1.16846256]
[1727079289363,0.440391,63462.0,63459.0,0.078794]
[1727079289668,0.078792,63461.0,63459.0,0.078794]
[1727079290164,0.078793,63460.0,63459.0,0.078794]